Cogmind - Beta 15 @@@ ROGUE MODE // 2025.07.04 @ 14:04:15 Player: Khoroshiy Result: Destroyed by D-53 Grenadier with Mini Grenade Launcher Performance ------------- Evolutions (0) 0 Regions Visited (2) 400 Robots Destroyed (9) 45 Value Destroyed (90) 90 Prototype IDs (0) 0 Alien Tech Used (0) 0 Bonus (-28) -28 TOTAL SCORE: 507 Bonus ------- Friendly Fire -28 Cogmind --------- Core Integrity 0/250 Matter 300/300 Energy 100/100 System Corruption 0% Temperature Cool (0) Movement Core (100) Ox1 Location -10/Mines Parts ------- > --- POWER (1) -------- (None) > --- PROPULSION (2) --- (None) > --- UTILITY (2) ------ Small Storage Unit > --- WEAPON (2) ------- (None) > --- INVENTORY (8) ---- Light Ion Engine Light Ion Engine Aluminum Leg Flight Unit Flight Unit Flight Unit Flight Unit Peak State ------------ > --- POWER ------------ Light Nuclear Core > --- PROPULSION ------- Aluminum Leg Aluminum Leg > --- UTILITY ---------- Small Storage Unit > --- WEAPON ----------- Light Assault Rifle Grenade Launcher > --- INVENTORY -------- Light Ion Engine Light Ion Engine Wheel Wheel Flight Unit Flight Unit Flight Unit Flight Unit [Rating: 8] Favorites ----------- Power Ion Engine Engine Ion Engine Power Core Light Nuclear Core Propulsion Wheel Leg Aluminum Leg Wheel Wheel Flight Unit Flight Unit Utility Small Storage Unit Storage Small Storage Unit Weapon Light Assault Rifle Energy Gun EM Pulse Gun Ballistic Gun Light Assault Rifle Launcher Grenade Launcher Special Weapon Mining Laser Build | -11 -10 -10 ------- Run | Yrd Mat Min Slots Evolved . | . . . Power . | . . . Propulsion . | . . . Utility . | . . . Weapon . | . . . Parts Attached 17 | 7 5 5 Power 3 | 2 . 1 Engine 2 | 2 . . Core 1 | . . 1 Reactor . | . . . Propulsion 8 | 2 3 3 Treads . | . . . Leg 2 | . . 2 Wheel 3 | 2 . 1 Hover . | . . . Flight 3 | . 3 . Utility 1 | 1 . . Device . | . . . Storage 1 | 1 . . Processor . | . . . Hackware . | . . . Protection . | . . . Artifact . | . . . Weapon 5 | 2 2 1 Energy Gun 2 | 1 1 . Energy Cannon . | . . . Ballistic Gun 1 | 1 . . Ballistic Cannon . | . . . Launcher 1 | . . 1 Special Weapon 1 | . 1 . Impact Weapon . | . . . Slashing Weapon . | . . . Piercing Weapon . | . . . Special Melee Weapon . | . . . Unidentified Prototypes . | . . . Parts Lost 9 | . 2 7 Power 1 | . . 1 Propulsion 4 | . 1 3 Utility . | . . . Weapon 4 | . 1 3 Highest Loss Streak 6 | . 1 6 To Critical Strikes . | . . . Average Backups 5 | 1 4 7 Power 1 | . 1 1 Propulsion 3 | . 2 5 Utility . | . . . Weapon 1 | . 1 . Tool/Special . | . . . Unused Backups 1 | . . 1 Power . | . . . Propulsion 1 | . . 1 Utility . | . . . Weapon . | . . . Tool/Special . | . . . Average Slot Usage (%) 80 | . 80 79 Engine 12 | . 14 7 Core 1 | . . 6 Leg 5 | . . 22 Wheel 19 | . 25 . Flight 2 | . 1 3 Storage 14 | . 14 14 Energy Gun 7 | . 9 . Ballistic Gun 14 | . 14 14 Launcher 1 | . . 7 Peak Build Rating 8 | 6 6 8 Average Rating 5 | 4 5 6 On Entrance 4 | . 6 6 Naked Turns . | . . . Heaviest Build 14 | 12 13 14 Greatest Support 26 | 26 26 20 Greatest Overweight (x) 4 | 1 3 4 Average Overweight (x) . | . . . Largest Inventory Capacity 8 | 8 8 8 Average Capacity 7 | 6 8 8 Most Carried 8 | 4 8 8 Average Carried 5 | 1 4 7 Final Capacity 8 | 8 8 8 Final Carried 8 | 4 8 7 Class Distribution -------------------- 100% | Mutant Dominant Class ---------------- Mutant | -10/Materials Mutant | -10/Mines Resources | -11 -10 -10 ----------- Run | Yrd Mat Min Matter Collected 469 | 190 96 183 Remotely . | . . . Salvage Created 153 | . 105 48 Parts 11 | . 9 2 Haulers Intercepted . | . . . Recyclers Shooed . | . . . Parts Field Recycled . | . . . Retrieved Matter . | . . . Parts Self-Destructed . | . . . Prevented . | . . . Kills | -11 -10 -10 ------- Run | Yrd Mat Min Combat Hostiles Destroyed 12 | . 6 6 Guns 9 | . 6 3 AOE 3 | . . 3 Classes Destroyed 2 | . 1 1 Swarmer 9 | . 6 3 Assembled 3 | . . 3 Best Kill Streak 3 | . 3 3 Combat Bots Only 3 | . 3 3 Max Kills in Single Turn 2 | . 2 2 Gunslinging 1 | . 1 . Exploded 2 | . . 2 Melee . | . . . Uniques/NPCs Destroyed . | . . . Combat | -11 -10 -10 -------- Run | Yrd Mat Min Hostile Shots Fired 91 | . 52 39 Missed 24 | . 11 13 Hits 67 | . 41 26 Melee 1 | . . 1 Projectile 66 | . 41 25 AOE 9 | . . 9 Part Disruptions 1 | . . 1 Damage Taken 941 | . 325 616 Core 277 | . 67 210 Absorbed by Shields . | . . . Core Remaining (%) 100 | 100 . . Volleys Fired 44 | . 23 21 Largest 2 | . 2 2 Hottest 60 | . 60 50 Shots Fired 71 | . 44 27 Gun 65 | . 44 21 Cannon . | . . . Launcher 6 | . . 6 Special . | . . . Kinetic 44 | . 23 21 Thermal 15 | . 15 . Explosive 6 | . . 6 Electromagnetic 6 | . 6 . Robot Hit Streak 4 | . 2 4 Robot Miss Streak 7 | . 7 2 Penetration Max . | . . . Secondary Targets 1 | . 1 . Max Gunslinging Chain 1 | . 1 . Shots Hit Robots 27 | . 16 11 Core Hits 24 | . 10 14 Critical Kills . | . . . Critical Parts Destroyed . | . . . Critical Strikes . | . . . Melee Attacks . | . . . Impact . | . . . Slashing . | . . . Piercing . | . . . Sneak Attacks . | . . . Combat Hostiles . | . . . Follow-up Attacks . | . . . Damage Inflicted 555 | . 142 413 Guns 227 | . 142 85 Cannons . | . . . Explosions 328 | . . 328 Melee . | . . . Ramming . | . . . Kinetic 150 | . 65 85 Thermal 55 | . 55 . Explosive 328 | . . 328 Electromagnetic 22 | . 22 . Impact . | . . . Slashing . | . . . Piercing . | . . . Highest Corruption . | . . . Average Corruption . | . . . Corruption Purged . | . . . Corruption Blocked . | . . . Overload Shots . | . . . Overflow Damage . | . . . Projectiles . | . . . Explosions . | . . . Melee . | . . . Knockbacks . | . . . Impact . | . . . Kinetic . | . . . Secondary . | . . . Self-Inflicted Damage 32 | . . 32 Shots 3 | . . 3 Rammed . | . . . Targets Rammed . | . . . Kicked . | . . . Crushed . | . . . Highest Temperature 80 | . 80 18 Average Temperature 34 | . 41 9 Received Heat Transfer 40 | . . 40 Siege Activations . | . . . Martial Activations . | . . . Shielding Activations . | . . . Robots Disrupted . | . . . Combat Hostiles . | . . . Robots Corrupted . | . . . Combat Hostiles . | . . . Parts Fried . | . . . Impact Corruptions . | . . . Robots Melted . | . . . Combat Hostiles . | . . . Parts Melted 2 | . 2 . Heat Transferred 125 | . 125 . Parts Sabotaged . | . . . Parts Stolen . | . . . Parts Stripped . | . . . Power Chain Reactions . | . . . Alert | -11 -10 -10 ------- Run | Yrd Mat Min Maximum Alert Level . | . . . Low Security (%) 100 | 100 100 100 Level 1 . | . . . Level 2 . | . . . Level 3 . | . . . Level 4 . | . . . Level 5 . | . . . High Security . | . . . Max Security . | . . . Peak Influence 70 | . 70 67 Initial 17 | . . 17 Average 23 | . 19 42 Influence Increases 282 | . 176 106 Destroy 0b10 Robot/C 180 | . 120 60 Destroy Leader 30 | . 20 10 Successful Hack 6 | . 6 . Destroy Structure 36 | . . 36 Lose Combat Pursuer 30 | . 30 . Influence Decreases 282 | . 130 152 Entered New Map 29 | . . 29 Time Decay 190 | . 120 70 Lost Part 63 | . 10 53 Squads Dispatched . | . . . Investigation . | . . . Extermination . | . . . Reinforcement . | . . . Assault . | . . . Garrison . | . . . Intercept . | . . . Searches Triggered . | . . . Construction Impeded . | . . . Haulers Reinforced . | . . . Active Scanning Responses . | . . . Cargo Convoy Interrupts . | . . . Stealth | -11 -10 -10 --------- Run | Yrd Mat Min Distress Signals 1 | . 1 . Communications Jammed . | . . . Distress Signals . | . . . Times Spotted 31 | . 8 23 Peak Tracking Total 8 | . 3 8 Tactical Retreats 2 | . 1 1 Traps | -11 -10 -10 ------- Run | Yrd Mat Min Traps Triggered . | . . . Indirectly . | . . . Trap Hack Attempts . | . . . Triggered . | . . . Disarmed . | . . . Reprogrammed . | . . . Reused . | . . . Traps Extracted . | . . . Installed . | . . . Triggered . | . . . Machines | -11 -10 -10 ---------- Run | Yrd Mat Min Machines Disabled . | . . . Max in Single Turn . | . . . Machines Repaired . | . . . Machines Dismantled . | . . . Machines Sabotaged . | . . . Overloaded Fab Kills . | . . . Hacking | -11 -10 -10 --------- Run | Yrd Mat Min Machines Accessed 2 | . 2 . Terminals 2 | . 2 . Fabricators . | . . . Repair Stations . | . . . Recycling Units . | . . . Scanalyzers . | . . . Garrison Access . | . . . Total Hacks 6 | . 6 . Successful 1 | . 1 . Failed 5 | . 5 . Catastrophic 1 | . 1 . Database Lockouts . | . . . Manual 6 | . 6 . Terminals 6 | . 6 . Fabricators . | . . . Repair Stations . | . . . Recycling Units . | . . . Scanalyzers . | . . . Garrison Access . | . . . Terminal Hacks 1 | . 1 . Zone Layout 1 | . 1 . Fabricator Hacks . | . . . Repair Station Hacks . | . . . Recycling Unit Hacks . | . . . Scanalyzer . | . . . Garrison Access Hacks . | . . . Unauthorized Hacks . | . . . Terminals . | . . . Fabricators . | . . . Repair Stations . | . . . Recycling Units . | . . . Scanalyzers . | . . . Garrison Access . | . . . Data Cores Recovered . | . . . Used . | . . . Hacking Detections 2 | . 2 . Full Trace Events . | . . . Feedback Events . | . . . Feedback Blocked . | . . . Robot Schematics Acquired . | . . . Robots Built . | . . . Authchips . | . . . Time . | . . . Total Robot Build Rating . | . . . Part Schematics Acquired . | . . . Parts Built . | . . . Authchips . | . . . Time . | . . . Total Part Build Rating . | . . . Parts Repaired . | . . . Time . | . . . Parts Recycled . | . . . Recycled Matter . | . . . Retrieved Matter . | . . . Retrieved Components . | . . . Parts Scanalyzed . | . . . Part Schematics Acquired . | . . . Parts Damaged . | . . . Bothacking | -11 -10 -10 ------------ Run | Yrd Mat Min Used RIF Installer . | . . . Robots Hacked . | . . . Non-combat . | . . . Combat . | . . . Robot Hacks Applied . | . . . Relay Couplers Released . | . . . Fabnet Peak Effective % . | . . . Robots Rewired . | . . . Allies Hacked . | . . . Hacks Repelled . | . . . Allies | -11 -10 -10 -------- Run | Yrd Mat Min Total Allies . | . . . Largest Group . | . . . Highest-Rated Group . | . . . Highest-Rated Ally . | . . . Total Orders . | . . . Ally Attacks . | . . . Total Damage . | . . . Kills . | . . . Allies Corrupted . | . . . Allies Melted . | . . . Intel | -11 -10 -10 ------- Run | Yrd Mat Min Active Infowar (turns) . | . . . Robot Analysis Total . | . . . Derelict Logs Recovered . | . . . Drone Launches . | . . . Drone Recoveries . | . . . Exploration | -11 -10 -10 ------------- Run | Yrd Mat Min Turns Passed 727 | 53 514 160 Spaces Moved 483 | 45 353 85 Core 11 | 3 . 8 Treads . | . . . Legs 69 | . . 69 Wheels 374 | 42 332 . Hover . | . . . Flight 29 | . 21 8 Fastest Speed 50 | 50 90 100 Average Speed 98 | 87 93 126 Slowest Speed 285 | 100 285 250 Overloaded Moves . | . . . Propulsion Burnouts . | . . . Robots Hopped . | . . . Potential Cave-ins . | . . . Cave-ins Triggered . | . . . Exploration Rate (%) 23 | 3 47 19 Regions Visited 2 Branch Regions 1 Pre-discovered Areas . | . . . Known Exits Taken . | . . . Unknown Exits Taken 2 | 1 1 . Scrap Searched . | . . . Spaces Dug . | . . . Terrain Destroyed 47 | . . 47 Melee . | . . . Projectile . | . . . AOE 47 | . . 47 Terrain Rammed . | . . . Walls Destroyed . | . . . Machines Disabled . | . . . Actions | -11 -10 -10 --------- Run | Yrd Mat Min Total 661 | 54 495 112 Wait 105 | . 105 . Move 481 | 44 352 85 Hop . | . . . Pick Up 8 | 3 5 . Fast Attach 9 | 6 3 . Attach 3 | . 1 2 Detach . | . . . Swap 8 | 1 3 4 Drop 3 | . 3 . Fire 44 | . 23 21 Melee . | . . . Ram . | . . . Kick . | . . . Crush . | . . . Escape Stasis . | . . . Rewire . | . . . Trap . | . . . Miscellaneous . | . . . Route ------- -11/Scrapyard -10/Materials -10/Mines History --------- Turn | Location | Event 29 | -11/Scrapyard | Discovered new exit (range 15) 54 | -11/Scrapyard | Entered Materials 202 | -10/Materials | Discovered new exit (range 16) 316 | -10/Materials | Build established: Mutant 568 | -10/Materials | Entered Mines 579 | -10/Mines | Met a Derelict bent on vengeance 611 | -10/Mines | Assembled infested the area 616 | -10/Mines | Assisted by a Guerilla fighting off Assembled 723 | -10/Mines | Core integrity fell below 50% 728 | -10/Mines | Destroyed by D-53 Grenadier with Mini Grenade Launcher Last Messages --------------- as-47643 destroyed. The unstable cave ceiling collapses. Aluminum Leg destroyed. as-64636 destroyed. as-96247 destroyed. The unstable cave ceiling collapses. T-07 Excavator is excavating. The unstable cave ceiling collapses. T-07 Excavator is excavating. Wheel destroyed. as-38301 destroyed. T-07 Excavator is excavating. Grenade Launcher destroyed. as-11060 destroyed. T-07 Excavator is excavating. The unstable cave ceiling collapses. Lgt. Nuclear Core destroyed. T-07 Excavator is excavating. The unstable cave ceiling collapses. Lgt. Assault Rifle destroyed. Map ----- +----------------------------------------------------+ | | | | | | | | | | | | | | | | | | | | | ?????????????????????????????????????????????????? | | ?????????????????????????????????????????????????? | | ?????????????????????????????????????????????????? | | ?????????????????????????????????????????????????? | | ???????????????????????????????? ???????????????? | | ??????????????????????????????? ????????????????? | | ???????????????##?????????????? ?????????????????? | | ???????????????# ##??????????? ??????????????????? | | ???????????????# ???????### ???????????????????? | | ??????? ###????# ??????? ????????????????????? | | ??????? ???# ???##?? ?????????????????????? | | ?????? ??# #### ## ##????????????????????? | | ??????# #?## ## #????????????????????? | | ???????# ## #????????????????????? | | ???????# #????????????????????? | | ??????# @ #????????????????????? | | ?????????????# #????????????????????? | | ?????????????### ##????????????????????? | | ??????????????## ##?????????????????????? | | ??????????????# #??????????????????????? | | ??????????????# ###??????????????????????? | | ??????????????# #????????????????????????? | | ??????????????# ##????????????????????????? | | ??????????????# # d #?????????????????????????? | | ??????????????### # d ###???????????????????????? | | ????????????????## # #???????????????????????? | | ?????????????????## #???????????????????????? | | ?????????????????# # #???????????????????????? | | ??????####???????# ???????????????????????? | | ?????## ##??????## ! ???????????????????????? | | ?????# ##?????# # = ??????????????????????? | | ?????# ##????# # ?????????????????????? | | ?????# ####### [* ???????????????????? | | ??????# = ### % ## #??????????????? | | ??????## ####*## =!!= # #??????????????? | | ???????## ##### # ] #??????????????? | | ????????#### % ?????????? | | ???????????# %%"##### ??????????? | | ???????????# ##### # # # ##???????????????? | | ?????????? ????# ## ??####?#????????????????? | +----------------------------------------------------+ Best States ------------- Heat Dissipation 25 Energy Generation 14 Energy Capacity 250 Matter Stores 300 Matter Capacity 300 Sight Range 16 Terrain Scan Density 10 Evasion (%) 55 Item Schematics ----------------- None Robot Schematics ------------------ None Fabricated ------------ Nothing Repaired ---------- Nothing Alien Tech Used ----------------- None Achievements -------------- None Challenges ------------ None Game ------ Seed HardcellMetafiberAutogun Manual? 0 Play Time 00:09:54 Cumulative 2.8 hours Start 2025.07.04 @ 13:56:52 End 2025.07.04 @ 14:04:15 Sessions 1 Manual Loads 0 Difficulty Rogue Special Mode None Game No. 5 Rogue 5 Adventurer 0 Explorer 0 Win Type - Total 0 Types 0/0/0/0/0/0/0/0/0/0 Lore% 1 Gallery% 7 Achievement% 12 Wizard Run 0 Options --------- Layout 0 ASCII 0 Keyboard 0 Movement Arrows Keybinds 0 Fullscreen 2 Font 18/SmallcapsGlow Map View 38x25 Zoom Use 66% Tactical HUD 0 Map Filters NONE Filters NONE Steam 1 RUN: 3b4d8016-7498-43fa-a44a-06004217905c